fUSD/lending_fUSD_20240117
["ID","MTS","AMOUNT","RATE_DAILY","PERIOD"]
[311883394,1705488638378,-542.27036254,0.00021917,2]
[311883395,1705488638387,-500.0,0.00021917,2]
[311883396,1705488638397,-500.0,0.00021917,2]
[311883397,1705488638406,-579.63,0.00021917,2]
[311883398,1705488638416,-500.0,0.00021917,2]
[311883399,1705488638425,-500.0,0.00021917,2]
[311883400,1705488638435,-800.18,0.00021917,2]
[311883401,1705488638444,-466.42895715,0.00021917,2]
[311883402,1705488638455,-500.0,0.00021917,2]
[311883403,1705488638472,-642.05,0.00021917,2]
[311883404,1705488638484,-500.0,0.00021917,2]
[311883405,1705488638493,-500.0,0.00021917,2]
[311883406,1705488638503,-500.0,0.00021917,2]
[311883407,1705488638512,-500.0,0.00021917,2]
[311883408,1705488638521,-570.98,0.00021917,2]
[311883409,1705488638530,-596.49,0.00021917,2]
[311883411,1705488638540,-724.09,0.00021917,2]
[311883413,1705488638553,-500.0,0.00021917,2]
[311883415,1705488638562,-500.0,0.00021917,2]
[311883417,1705488638572,-500.0,0.00021917,2]
[311883420,1705488638581,-500.0,0.00021917,2]
[311883421,1705488638591,-500.0,0.00021917,2]
[311883424,1705488638601,-500.0,0.00021917,2]
[311883426,1705488638610,-500.0,0.00021917,2]
[311883428,1705488638619,-500.0,0.00021917,2]
[311883430,1705488638629,-508.21,0.00021917,2]
[311883432,1705488638638,-632.65,0.00021917,2]
[311883434,1705488638647,-518.88,0.00021917,2]
[311883436,1705488638657,-500.0,0.00021917,2]
[311883438,1705488638668,-500.0,0.00021917,2]
[311883440,1705488638677,-500.0,0.00021917,2]
[311883442,1705488638687,-512.93,0.00021917,2]
[311883444,1705488638696,-511.35146785,0.00021917,2]
[311883446,1705488638706,-500.0,0.00021917,2]
[311883448,1705488638715,-649.06,0.00021917,2]
[311883450,1705488638725,-500.0,0.00021917,2]
[311883452,1705488638734,-535.11968602,0.00021917,2]
[311883454,1705488638744,-500.0,0.00021917,2]
[311883456,1705488638754,-500.0,0.00021917,2]
[311883458,1705488638763,-630.68,0.00021917,2]
[311883460,1705488638773,-500.0,0.00021917,2]
[311883462,1705488638783,-500.0,0.00021917,2]
[311883464,1705488638792,-327.84559732,0.00021917,2]
[311883466,1705488638801,-500.0,0.00021917,2]
[311883468,1705488638810,-500.0,0.00021917,2]
[311883470,1705488638820,-500.0,0.00021917,2]
[311883472,1705488638830,-500.0,0.00021917,2]
[311883474,1705488638838,-500.0,0.00021917,2]
[311883477,1705488638848,-500.0,0.00021917,2]
[311883479,1705488638858,-500.0,0.00021917,2]
[311883481,1705488638867,-571.66,0.00021917,2]
[311883483,1705488638876,-500.0,0.00021917,2]
[311883485,1705488638886,-500.0,0.00021917,2]
[311883487,1705488638895,-500.0,0.00021917,2]
[311883489,1705488638904,-500.0,0.00021917,2]
[311883491,1705488638915,-658.8,0.00021917,2]
[311883493,1705488638932,-500.0,0.00021917,2]
[311883495,1705488638942,-745.11,0.00021917,2]
[311883497,1705488638956,-500.0,0.00021917,2]
[311883499,1705488638966,-500.0,0.00021917,2]
[311883501,1705488638977,-500.0,0.00021917,2]
[311883503,1705488638987,-500.0,0.00021917,2]
[311883505,1705488638997,-500.0,0.00021917,2]
[311883507,1705488639007,-802.88,0.00021917,2]
[311883509,1705488639017,-552.08,0.00021917,2]
[311883511,1705488639028,-500.0,0.00021917,2]
[311883513,1705488639039,-500.0,0.00021917,2]
[311883515,1705488639050,-500.0,0.00021917,2]
[311883517,1705488639059,-500.0,0.00021917,2]
[311883519,1705488639069,-500.0,0.00021917,2]
[311883522,1705488639080,-500.0,0.00021917,2]
[311883524,1705488639090,-753.52,0.00021917,2]
[311883526,1705488639102,-727.92,0.00021917,2]
[311883528,1705488639116,-500.0,0.00021917,2]
[311883530,1705488639126,-500.0,0.00021917,2]
[311883532,1705488639135,-500.0,0.00021917,2]
[311883534,1705488639145,-765.5,0.00021917,2]
[311883536,1705488639154,-504.12236207,0.00021917,2]
[311883538,1705488639164,-500.30666907,0.00021917,2]
[311883540,1705488639173,-939.57,0.00021917,2]
[311883542,1705488639183,-500.0,0.00021917,2]
[311883544,1705488639193,-540.64,0.00021917,2]
[311883546,1705488639205,-611.2,0.00021917,2]
[311883548,1705488639214,-500.0,0.00021917,2]
[311883551,1705488639224,-500.0,0.00021917,2]
[311883554,1705488639247,-500.0,0.00021917,2]
[311883556,1705488639258,-511.47,0.00021917,2]
[311883558,1705488639270,-500.0,0.00021917,2]
[311883560,1705488639280,-500.0,0.00021917,2]
[311883562,1705488639291,-685.19,0.00021917,2]
[311883564,1705488639301,-500.0,0.00021917,2]
[311883566,1705488639312,-500.0,0.00021917,2]
[311883568,1705488639322,-500.0,0.00021917,2]
[311883570,1705488639332,-500.0,0.00021917,2]
[311883572,1705488639342,-500.0,0.00021917,2]
[311883575,1705488639352,-500.0,0.00021917,2]
[311883577,1705488639362,-500.0,0.00021917,2]
[311883579,1705488639372,-774.57,0.00021917,2]
[311883581,1705488639382,-500.0,0.00021917,2]
[311883583,1705488639392,-500.0,0.00021917,2]
[311883585,1705488639402,-500.0,0.00021917,2]
[311883587,1705488639412,-500.0,0.00021917,2]
[311883589,1705488639422,-500.0,0.00021917,2]
[311883591,1705488639432,-500.0,0.00021917,2]
[311883593,1705488639441,-500.0,0.00021917,2]
[311883595,1705488639452,-500.0,0.00021917,2]
[311883597,1705488639462,-500.0,0.00021917,2]
[311883599,1705488639473,-500.0,0.00021917,2]
[311883602,1705488639483,-644.61,0.00021917,2]
[311883604,1705488639493,-500.0,0.00021917,2]
[311883606,1705488639503,-500.0,0.00021917,2]
[311883608,1705488639513,-500.0,0.00021917,2]
[311883610,1705488639522,-500.0,0.00021917,2]
[311883612,1705488639532,-500.0,0.00021917,2]
[311883614,1705488639542,-506.84954021,0.00021917,2]
[311883616,1705488639552,-690.08,0.00021917,2]
[311883618,1705488639563,-500.0,0.00021917,2]
[311883620,1705488639573,-500.0,0.00021917,2]
[311883622,1705488639584,-431.65753387,0.00021917,2]
[311883625,1705488639594,-500.0,0.00021917,2]
[311883627,1705488639605,-500.0,0.00021917,2]
[311883629,1705488639615,-1181.88,0.00021917,2]
[311883631,1705488639625,-500.0,0.00021917,2]
[311883633,1705488639635,-500.0,0.00021917,2]
[311883635,1705488639645,-500.0,0.00021917,2]
[311883637,1705488639654,-500.0,0.00021917,2]
[311883639,1705488639664,-568.93024412,0.00021917,2]
[311883641,1705488639675,-553.63,0.00021917,2]
[311883643,1705488639684,-500.0,0.00021917,2]
[311883645,1705488639695,-500.0,0.00021917,2]
[311883647,1705488639706,-500.0,0.00021917,2]
[311883650,1705488639716,-171.99856705,0.00021917,2]
[311883652,1705488639726,-500.0,0.00021917,2]
[311883654,1705488639735,-500.0,0.00021917,2]
[311883656,1705488639747,-500.0,0.00021917,2]
[311883658,1705488639757,-500.0,0.00021917,2]
[311883660,1705488639766,-500.0,0.00021917,2]
[311883662,1705488639777,-500.0,0.00021917,2]
[311883664,1705488639787,-500.0,0.00021917,2]
[311883666,1705488639797,-500.0,0.00021917,2]
[311883668,1705488639807,-500.0,0.00021917,2]
[311883670,1705488639817,-500.0,0.00021917,2]
[311883672,1705488639827,-500.0,0.00021917,2]
[311883675,1705488639837,-500.0,0.00021917,2]
[311883677,1705488639847,-500.0,0.00021917,2]
[311883679,1705488639857,-873.71,0.00021917,2]
[311883681,1705488639867,-500.0,0.00021917,2]
[311883683,1705488639877,-500.0,0.00021917,2]
[311883685,1705488639887,-500.0,0.00021917,2]
[311883687,1705488639896,-500.0,0.00021917,2]
[311883689,1705488639906,-500.0,0.00021917,2]
[311883691,1705488639916,-500.0,0.00021917,2]
[311883693,1705488639926,-500.0,0.00021917,2]
[311883695,1705488639936,-500.0,0.00021917,2]
[311883698,1705488639952,-500.0,0.00021917,2]
[311883699,1705488639962,-500.0,0.00021917,2]
[311883702,1705488639971,-677.86,0.00021917,2]
[311883704,1705488639982,-500.0,0.00021917,2]
[311883706,1705488639991,-500.0,0.00021917,2]
[311883708,1705488640001,-500.0,0.00021917,2]
[311883710,1705488640011,-508.47497256,0.00021917,2]
[311883712,1705488640022,-500.0,0.00021917,2]
[311883714,1705488640035,-502.73,0.00021917,2]
[311883716,1705488640045,-500.0,0.00021917,2]
[311883718,1705488640059,-740.36,0.00021917,2]
[311883721,1705488640071,-500.0,0.00021917,2]
[311883723,1705488640081,-500.0,0.00021917,2]
[311883725,1705488640091,-2085.33040653,0.00021917,2]
[311883727,1705488640101,-500.0,0.00021917,2]
[311883729,1705488640111,-500.0,0.00021917,2]
[311883731,1705488640121,-508.14874797,0.00021917,2]
[311883733,1705488640131,-500.0,0.00021917,2]
[311883735,1705488640142,-500.0,0.00021917,2]
[311883737,1705488640152,-500.0,0.00021917,2]
[311883739,1705488640162,-500.0,0.00021917,2]
[311883741,1705488640173,-500.0,0.00021917,2]
[311883743,1705488640182,-500.0,0.00021917,2]
[311883746,1705488640192,-500.0,0.00021917,2]
[311883748,1705488640202,-1074.19,0.00021917,2]
[311883750,1705488640212,-500.0,0.00021917,2]
[311883752,1705488640222,-500.0,0.00021917,2]
[311883753,1705488640233,-500.0,0.00021917,2]
[311883754,1705488640243,-500.0,0.00021917,2]
[311883755,1705488640253,-500.0,0.00021917,2]
[311883756,1705488640264,-904.87,0.00021917,2]
[311883757,1705488640274,-718.56,0.00021917,2]
[311883758,1705488640284,-500.0,0.00021917,2]
[311883759,1705488640295,-500.0,0.00021917,2]
[311883761,1705488640305,-500.0,0.00021917,2]
[311883763,1705488640315,-707.98,0.00021917,2]
[311883765,1705488640325,-500.0,0.00021917,2]
[311883767,1705488640335,-500.0,0.00021917,2]
[311883769,1705488640345,-500.0,0.00021917,2]
[311883772,1705488640355,-960.71,0.00021917,2]
[311883774,1705488640365,-574.4233731,0.00021917,2]
[311883776,1705488640376,-500.0,0.00021917,2]
[311883778,1705488640385,-500.0,0.00021917,2]
[311883780,1705488640395,-549.36245042,0.00021917,2]
[311883782,1705488640405,-500.0,0.00021917,2]
[311883784,1705488640415,-500.0,0.00021917,2]
[311883786,1705488640425,-500.0,0.00021917,2]
[311883788,1705488640435,-500.0,0.00021917,2]
[311883790,1705488640445,-500.0,0.00021917,2]
[311883792,1705488640455,-500.0,0.00021917,2]
[311883794,1705488640465,-500.0,0.00021917,2]
[311883796,1705488640474,-500.0,0.00021917,2]
[311883799,1705488640485,-505.10373693,0.00021917,2]
[311883801,1705488640494,-566.2,0.00021917,2]
[311883803,1705488640503,-500.0,0.00021917,2]
[311883805,1705488640513,-677.46,0.00021917,2]
[311883807,1705488640522,-500.0,0.00021917,2]
[311883809,1705488640532,-500.0,0.00021917,2]
[311883811,1705488640541,-500.0,0.00021917,2]
[311883813,1705488640551,-500.0,0.00021917,2]
[311883815,1705488640561,-500.0,0.00021917,2]
[311883817,1705488640571,-500.0,0.00021917,2]
[311883819,1705488640581,-1389.59,0.00021917,2]
[311883821,1705488640591,-500.0,0.00021917,2]
[311883823,1705488640601,-500.0,0.00021917,2]
[311883825,1705488640611,-500.0,0.00021917,2]
[311883828,1705488640621,-500.0,0.00021917,2]
[311883830,1705488640630,-1178.73,0.00021917,2]
[311883883,1705488641099,-500.0,0.00021917,2]
[311883885,1705488641109,-275.41345884,0.00021917,2]
[311883887,1705488641119,-500.0,0.00021917,2]
[311883889,1705488641129,-500.0,0.00021917,2]
[311883891,1705488641139,-531.78,0.00021917,2]
[311883893,1705488641148,-622.32,0.00021917,2]
[311883895,1705488641158,-500.0,0.00021917,2]
[311883897,1705488641166,-820.33,0.00021917,2]
[311883899,1705488641176,-500.0,0.00021917,2]
[311883901,1705488641186,-589.61,0.00021917,2]
[311883903,1705488641195,-1106.6,0.00021917,2]
[311883905,1705488641205,-500.0,0.00021917,2]
[311883907,1705488641215,-500.0,0.00021917,2]
[311883909,1705488641224,-500.0,0.00021917,2]
[311883911,1705488641234,-798.29,0.00021917,2]
[311883913,1705488641243,-1056.32,0.00021917,2]
[311883915,1705488641252,-500.0,0.00021917,2]
[311883918,1705488641262,-500.0,0.00021917,2]
[311883919,1705488641271,-868.15,0.00021917,2]
[311883921,1705488641281,-1836.95,0.00021917,2]
[311883923,1705488641290,-500.0,0.00021917,2]
[311883925,1705488641299,-575.5,0.00021917,2]
[311883927,1705488641309,-500.0,0.00021917,2]
[311883929,1705488641318,-1051.23,0.00021917,2]
[311883931,1705488641328,-501.19847855,0.00021917,2]
[311883934,1705488641338,-1008.33,0.00021917,2]
[311883936,1705488641348,-500.0,0.00021917,2]
[311883938,1705488641358,-711.68,0.00021917,2]
[311883940,1705488641368,-500.0,0.00021917,2]
[311883942,1705488641378,-500.0,0.00021917,2]
[311883944,1705488641387,-1132.55,0.00021917,2]
[311883946,1705488641397,-500.0,0.00021917,2]
[311883948,1705488641411,-340.40600212,0.00021917,2]
[311883950,1705488641421,-672.85,0.00021917,2]
[311883953,1705488641432,-747.7,0.00021917,2]
[311883955,1705488641442,-526.46187395,0.00021917,2]
[311883957,1705488641452,-755.88,0.00021917,2]
[311883959,1705488641462,-964.78,0.00021917,2]
[311883961,1705488641472,-699.7,0.00021917,2]
[311883962,1705488641482,-500.0,0.00021917,2]
[311883964,1705488641491,-500.0,0.00021917,2]
[311883966,1705488641501,-500.0,0.00021917,2]
[311883968,1705488641511,-905.03,0.00021917,2]
[311883970,1705488641520,-500.0,0.00021917,2]
[311883973,1705488641530,-500.0,0.00021917,2]
[311883975,1705488641539,-500.0,0.00021917,2]
[311883977,1705488641549,-831.6,0.00021917,2]
[311883979,1705488641558,-694.45,0.00021917,2]
[311883981,1705488641567,-500.0,0.00021917,2]
[311883983,1705488641577,-822.23,0.00021917,2]
[311883985,1705488641587,-500.0,0.00021917,2]
[311883987,1705488641597,-500.0,0.00021917,2]
[311883989,1705488641606,-500.0,0.00021917,2]
[311883991,1705488641616,-500.0,0.00021917,2]
[311883993,1705488641626,-914.81,0.00021917,2]
[311883995,1705488641636,-654.85,0.00021917,2]
[311883997,1705488641645,-631.93,0.00021917,2]
[311883999,1705488641655,-500.0,0.00021917,2]
[311884001,1705488641665,-500.0,0.00021917,2]
[311884004,1705488641675,-899.61,0.00021917,2]
[311884006,1705488641684,-500.0,0.00021917,2]
[311884008,1705488641694,-500.0,0.00021917,2]
[311884010,1705488641704,-1171.31,0.00021917,2]
[311884012,1705488641714,-597.57,0.00021917,2]
[311884014,1705488641723,-620.34,0.00021917,2]
[311884016,1705488641733,-792.09,0.00021917,2]
[311884018,1705488641742,-969.64,0.00021917,2]
[311884020,1705488641752,-500.0,0.00021917,2]
[311884022,1705488641761,-529.31391837,0.00021917,2]
[311884024,1705488641770,-500.0,0.00021917,2]
[311884026,1705488641780,-500.0,0.00021917,2]
[311884028,1705488641789,-500.0,0.00021917,2]
[311884030,1705488641800,-598.5,0.00021917,2]
[311884032,1705488641809,-500.0,0.00021917,2]
[311884033,1705488641818,-500.0,0.00021917,2]
[311884034,1705488641827,-634.53,0.00021917,2]
[311884035,1705488641836,-500.0,0.00021917,2]
[311884036,1705488641845,-1668.04,0.00021917,2]
[311884037,1705488641854,-500.0,0.00021917,2]
[311884038,1705488641863,-500.0,0.00021917,2]
[311884039,1705488641872,-500.0,0.00021917,2]
[311884041,1705488641882,-616.72,0.00021917,2]
[311884043,1705488641892,-500.0,0.00021917,2]
[311884045,1705488641901,-500.0,0.00021917,2]
[311884047,1705488641912,-888.02,0.00021917,2]
[311884049,1705488641921,-500.0,0.00021917,2]
[311884051,1705488641931,-994.03,0.00021917,2]
[311884053,1705488641942,-547.66,0.00021917,2]
[311884055,1705488641958,-500.0,0.00021917,2]
[311884057,1705488641970,-500.0,0.00021917,2]
[311884059,1705488641981,-364.54537392,0.00021917,2]
[311884061,1705488641993,-500.0,0.00021917,2]
[311884063,1705488642003,-695.07,0.00021917,2]
[311884065,1705488642013,-500.0,0.00021917,2]
[311884067,1705488642024,-500.0,0.00021917,2]
[311884069,1705488642036,-500.0,0.00021917,2]
[311884071,1705488642046,-795.25,0.00021917,2]
[311884074,1705488642056,-500.0,0.00021917,2]
[311884076,1705488642072,-500.0,0.00021917,2]
[311884078,1705488642082,-837.89,0.00021917,2]
[311884080,1705488642091,-1228.98,0.00021917,2]
[311884082,1705488642102,-500.0,0.00021917,2]
[311884084,1705488642112,-500.0,0.00021917,2]
[311884086,1705488642121,-500.0,0.00021917,2]
[311884088,1705488642131,-500.0,0.00021917,2]
[311884091,1705488642141,-500.0,0.00021917,2]
[311884093,1705488642151,-500.0,0.00021917,2]
[311884095,1705488642161,-500.0,0.00021917,2]
[311884097,1705488642171,-500.0,0.00021917,2]
[311884099,1705488642180,-500.0,0.00021917,2]
[311884101,1705488642190,-500.0,0.00021917,2]
[311884103,1705488642200,-1214.3,0.00021917,2]
[311884105,1705488642214,-500.0,0.00021917,2]
[311884107,1705488642223,-500.0,0.00021917,2]
[311884109,1705488642233,-500.0,0.00021917,2]
[311884111,1705488642242,-500.0,0.00021917,2]
[311884113,1705488642252,-500.0,0.00021917,2]
[311884116,1705488642262,-500.0,0.00021917,2]
[311884118,1705488642271,-500.0,0.00021917,2]
[311884120,1705488642281,-1218.94,0.00021917,2]
[311884122,1705488642290,-500.0,0.00021917,2]
[311884124,1705488642299,-1117.39,0.00021917,2]
[311884126,1705488642309,-500.0,0.00021917,2]
[311884128,1705488642319,-500.0,0.00021917,2]
[311884130,1705488642328,-615.47,0.00021917,2]
[311884132,1705488642337,-500.0,0.00021917,2]
[311884134,1705488642346,-656.17,0.00021917,2]
[311884136,1705488642357,-778.26,0.00021917,2]
[311884138,1705488642366,-500.0,0.00021917,2]
[311884140,1705488642376,-520.74,0.00021917,2]
[311884142,1705488642385,-500.0,0.00021917,2]
[311884144,1705488642394,-592.54,0.00021917,2]
[311884146,1705488642404,-521.31,0.00021917,2]
[311884148,1705488642413,-500.0,0.00021917,2]
[311884150,1705488642423,-500.0,0.00021917,2]
[311884152,1705488642432,-598.19,0.00021917,2]
[311884154,1705488642442,-666.13,0.00021917,2]
[311884156,1705488642452,-500.0,0.00021917,2]
[311884158,1705488642461,-504.79825583,0.00021917,2]
[311884160,1705488642471,-903.47,0.00021917,2]
[311884162,1705488642481,-500.0,0.00021917,2]
[311884164,1705488642491,-961.89,0.00021917,2]
[311884167,1705488642500,-500.0,0.00021917,2]
[311884169,1705488642510,-500.0,0.00021917,2]
[311884171,1705488642520,-500.0,0.00021917,2]
[311884173,1705488642529,-500.0,0.00021917,2]
[311884175,1705488642538,-500.0,0.00021917,2]
[311884177,1705488642548,-1584.41,0.00021917,2]
[311884179,1705488642557,-500.0,0.00021917,2]
[311884181,1705488642566,-1028.69,0.00021917,2]
[311884183,1705488642575,-500.0,0.00021917,2]
[311884185,1705488642585,-718.66,0.00021917,2]
[311884187,1705488642595,-594.3,0.00021917,2]
[311884189,1705488642604,-718.66,0.00021917,2]
[311884191,1705488642614,-718.66,0.00021917,2]
[311884193,1705488642623,-718.66,0.00021917,2]
[311884195,1705488642632,-500.0,0.00021917,2]
[311884197,1705488642641,-678.82,0.00021917,2]
[311884199,1705488642651,-794.64,0.00021917,2]
[311884201,1705488642660,-500.0,0.00021917,2]
[311884203,1705488642671,-945.13,0.00021917,2]
[311884205,1705488642681,-500.0,0.00021917,2]
[311884207,1705488642690,-514.47179954,0.00021917,2]
[311884209,1705488642700,-500.0,0.00021917,2]
[311884211,1705488642710,-1061.34,0.00021917,2]
[311884213,1705488642719,-500.0,0.00021917,2]
[311884215,1705488642729,-500.0,0.00021917,2]
[311884217,1705488642739,-500.0,0.00021917,2]
[311884219,1705488642748,-500.0,0.00021917,2]
[311884221,1705488642757,-500.0,0.00021917,2]
[311884223,1705488642767,-1229.05,0.00021917,2]
[311884225,1705488642776,-250.0,0.00021917,2]
[311884227,1705488642786,-500.0,0.00021917,2]
[311884229,1705488642795,-500.0,0.00021917,2]
[311884233,1705488642805,-986.26,0.00021917,2]
[311884238,1705488642815,-1119.4,0.00021917,2]
[311884243,1705488642824,-500.0,0.00021917,2]
[311884247,1705488642834,-500.0,0.00021917,2]
[311884252,1705488642843,-500.0,0.00021917,2]
[311884256,1705488642853,-590.45,0.00021917,2]
[311884260,1705488642863,-500.0,0.00021917,2]
[311884264,1705488642872,-500.0,0.00021917,2]
[311884267,1705488642882,-500.0,0.00021917,2]
[311884270,1705488642891,-500.0,0.00021917,2]
[311884274,1705488642900,-500.0,0.00021917,2]
[311884279,1705488642909,-500.0,0.00021917,2]
[311884282,1705488642918,-550.68587308,0.00021917,2]
[311884286,1705488642927,-500.0,0.00021917,2]
[311884290,1705488642936,-500.0,0.00021917,2]
[311884294,1705488642947,-862.13,0.00021917,2]
[311884297,1705488642959,-744.21,0.00021917,2]
[311884300,1705488642969,-500.0,0.00021917,2]
[311884303,1705488642978,-915.51,0.00021917,2]
[311884307,1705488642989,-500.0,0.00021917,2]
[311884310,1705488642998,-500.0,0.00021917,2]
[311884313,1705488643008,-500.0,0.00021917,2]
[311884316,1705488643018,-500.0,0.00021917,2]
[311884319,1705488643028,-500.0,0.00021917,2]
[311884321,1705488643037,-500.0,0.00021917,2]
[311884323,1705488643047,-719.3,0.00021917,2]
[311884325,1705488643056,-500.0,0.00021917,2]
[311884328,1705488643065,-500.0,0.00021917,2]
[311884331,1705488643075,-1324.42,0.00021917,2]
[311884334,1705488643084,-500.0,0.00021917,2]
[311884337,1705488643094,-1019.36,0.00021917,2]
[311884340,1705488643103,-500.0,0.00021917,2]
[311884344,1705488643113,-500.0,0.00021917,2]
[311884347,1705488643123,-500.0,0.00021917,2]
[311884350,1705488643132,-678.74,0.00021917,2]
[311884353,1705488643141,-500.0,0.00021917,2]
[311884356,1705488643151,-942.81,0.00021917,2]
[311884359,1705488643160,-932.38,0.00021917,2]
[311884362,1705488643170,-547.85,0.00021917,2]
[311884365,1705488643179,-500.0,0.00021917,2]
[311884368,1705488643188,-537.01,0.00021917,2]
[311884371,1705488643198,-637.06,0.00021917,2]
[311884374,1705488643208,-855.55,0.00021917,2]
[311884377,1705488643218,-500.0,0.00021917,2]
[311884380,1705488643227,-504.78583976,0.00021917,2]
[311884383,1705488643236,-500.0,0.00021917,2]
[311884386,1705488643246,-509.82925172,0.00021917,2]
[311884389,1705488643255,-500.0,0.00021917,2]
[311884392,1705488643265,-500.0,0.00021917,2]
[311884395,1705488643275,-500.0,0.00021917,2]
[311884398,1705488643284,-670.15,0.00021917,2]
[311884401,1705488643293,-868.48,0.00021917,2]
[311884403,1705488643302,-705.91,0.00021917,2]
[311884405,1705488643312,-996.55,0.00021917,2]
[311884407,1705488643322,-887.57,0.00021917,2]
[311884408,1705488643332,-694.66,0.00021917,2]
[311884409,1705488643341,-505.17553014,0.00021917,2]
[311884410,1705488643351,-500.0,0.00021917,2]
[311884412,1705488643361,-500.0,0.00021917,2]
[311884414,1705488643371,-740.27,0.00021917,2]
[311884416,1705488643381,-1588.19,0.00021917,2]
[311884418,1705488643390,-500.0,0.00021917,2]
[311884420,1705488643399,-1135.28,0.00021917,2]
[311884422,1705488643409,-1130.47,0.00021917,2]
[311884424,1705488643418,-977.9,0.00021917,2]
[311884426,1705488643427,-785.37,0.00021917,2]
[311884428,1705488643437,-500.0,0.00021917,2]
[311884430,1705488643446,-500.0,0.00021917,2]
[311884432,1705488643456,-500.0,0.00021917,2]
[311884434,1705488643465,-500.0,0.00021917,2]
[311884436,1705488643474,-2046.47,0.00021917,2]
[311884438,1705488643483,-965.14,0.00021917,2]
[311884440,1705488643492,-1188.04,0.00021917,2]
[311884442,1705488643502,-1023.75,0.00021917,2]
[311884444,1705488643511,-933.13,0.00021917,2]
[311884458,1705488643627,-500.0,0.00021917,2]
[311884460,1705488643637,-910.24,0.00021917,2]
[311884461,1705488643646,-500.0,0.00021917,2]
[311884464,1705488643655,-500.0,0.00021917,2]
[311884466,1705488643664,-524.62106045,0.00021917,2]
[311884468,1705488643673,-1135.09,0.00021917,2]
[311884470,1705488643683,-1351.0,0.00021917,2]
[311884472,1705488643692,-655.99,0.00021917,2]
[311884474,1705488643702,-500.0,0.00021917,2]
[311884475,1705488643712,-979.39,0.00021917,2]
[311884477,1705488643721,-1037.67,0.00021917,2]
[311884479,1705488643730,-500.0,0.00021917,2]
[311884481,1705488643739,-500.0,0.00021917,2]
[311884483,1705488643748,-500.0,0.00021917,2]
[311884485,1705488643757,-1995.97,0.00021917,2]
[311884487,1705488643766,-500.0,0.00021917,2]
[311884490,1705488643776,-500.0,0.00021917,2]
[311884492,1705488643785,-1189.86,0.00021917,2]
[311884494,1705488643795,-756.56,0.00021917,2]
[311884496,1705488643804,-878.45,0.00021917,2]
[311884498,1705488643813,-1371.73,0.00021917,2]
[311884500,1705488643822,-3095.94,0.00021917,2]
[311884502,1705488643832,-529.81,0.00021917,2]
[311884503,1705488643841,-594.94,0.00021917,2]
[311884505,1705488643850,-500.0,0.00021917,2]
[311884507,1705488643859,-2298.43,0.00021917,2]
[311884510,1705488643868,-617.42,0.00021917,2]
[311884512,1705488643878,-5193.18,0.00021917,2]
[311884514,1705488643887,-1218.87,0.00021917,2]